Workbook

Sheet 每週銷售活動
B1: 每週銷售活動 | I1: 銷售人員 | J1: 姓名 | L1: 每週結束 | M1: 日期
I3: 地點 | J3: 地點 | L3: 今天的日期 | M3: 日期
B5: 星期 | C5: 銷售服務處內 | D5: 銷售服務處外 | E5: 辦公室拜訪 | F5: 電話訪問 | G5: 既有客戶電話 | H5: 新客戶電話 | I5: 客房數 | J5: 食物與飲料 | K5: 會議室租借 | L5: 其他* | M5: 合計
B6: 星期一 | C6: NT$14.00 | D6: NT$23.00 | E6: NT$4.00 | F6: NT$45.00 | G6: NT$22.00 | H6: NT$2.00 | I6: NT$100.00 | J6: NT$0.00 | K6: NT$0.00 | L6: NT$0.00 | M6: =SUM(活動[[#This Row],[銷售服務處內]:[其他*]]) -> NT$210.00
B7: 星期二 | C7: NT$23.00 | D7: NT$76.00 | E7: NT$10.00 | F7: NT$50.00 | G7: NT$54.00 | H7: NT$45.00 | I7: NT$80.00 | J7: NT$0.00 | K7: NT$0.00 | L7: NT$0.00 | M7: =SUM(活動[[#This Row],[銷售服務處內]:[其他*]]) -> NT$338.00
B8: 星期三 | C8: NT$4.00 | D8: NT$130.00 | E8: NT$11.00 | F8: NT$33.00 | G8: NT$67.00 | H8: NT$65.00 | I8: NT$400.00 | J8: NT$0.00 | K8: NT$0.00 | L8: NT$0.00 | M8: =SUM(活動[[#This Row],[銷售服務處內]:[其他*]]) -> NT$710.00
B9: 星期四 | C9: NT$102.00 | D9: NT$40.00 | E9: NT$18.00 | F9: NT$0.00 | G9: NT$86.00 | H9: NT$82.00 | I9: NT$97.00 | J9: NT$0.00 | K9: NT$0.00 | L9: NT$0.00 | M9: =SUM(活動[[#This Row],[銷售服務處內]:[其他*]]) -> NT$425.00
B10: 星期五 | C10: NT$33.00 | D10: NT$55.00 | E10: NT$22.00 | F10: NT$49.00 | G10: NT$143.00 | H10: NT$26.00 | I10: NT$50.00 | J10: NT$0.00 | K10: NT$0.00 | L10: NT$0.00 | M10: =SUM(活動[[#This Row],[銷售服務處內]:[其他*]]) -> NT$378.00
B11: 星期六 | C11: NT$0.00 | D11: NT$0.00 | E11: NT$0.00 | F11: NT$0.00 | G11: NT$0.00 | H11: NT$0.00 | I11: NT$0.00 | J11: NT$0.00 | K11: NT$0.00 | L11: NT$0.00 | M11: =SUM(活動[[#This Row],[銷售服務處內]:[其他*]]) -> NT$0.00
B12: 星期日 | C12: NT$0.00 | D12: NT$0.00 | E12: NT$0.00 | F12: NT$0.00 | G12: NT$0.00 | H12: NT$0.00 | I12: NT$0.00 | J12: NT$0.00 | K12: NT$0.00 | L12: NT$0.00 | M12: =SUM(活動[[#This Row],[銷售服務處內]:[其他*]]) -> NT$0.00
B13: 合計 | C13: =SUBTOTAL(109,活動[銷售服務處內]) -> NT$176.00 | D13: =SUBTOTAL(109,活動[銷售服務處外]) -> NT$324.00 | E13: =SUBTOTAL(109,活動[辦公室拜訪]) -> NT$65.00 | F13: =SUBTOTAL(109,活動[電話訪問]) -> NT$177.00 | G13: =SUBTOTAL(109,活動[既有客戶電話]) -> NT$372.00 | H13: =SUBTOTAL(109,活動[新客戶電話]) -> NT$220.00 | I13: =SUBTOTAL(105,活動[客房數]) -> NT$0.00 | J13: =SUBTOTAL(109,活動[食物與飲料]) -> NT$0.00 | K13: =SUBTOTAL(109,活動[會議室租借]) -> NT$0.00 | L13: =SUBTOTAL(109,活動[其他*]) -> NT$0.00 | M13: =SUBTOTAL(109,活動[合計]) -> NT$2,061.00
B15: 目標 | C15: NT$200.00 | D15: NT$400.00 | E15: NT$300.00 | F15: NT$65.00 | G15: NT$500.00 | H15: NT$300.00 | I15: NT$400.00 | J15: NT$600.00 | K15: NT$300.00 | L15: NT$300.00 | M15: =SUM(C15:L15) -> NT$3,365.00
B16: 差異 | C16: =SUM(活動[[#Totals],[銷售服務處內]]-C15) -> -NT$24.00 | D16: =SUM(活動[[#Totals],[銷售服務處外]]-D15) -> -NT$76.00 | E16: =SUM(活動[[#Totals],[辦公室拜訪]]-E15) -> -NT$235.00 | F16: =SUM(活動[[#Totals],[辦公室拜訪]]-F15) -> NT$0.00 | G16: =SUM(活動[[#Totals],[既有客戶電話]]-G15) -> -NT$128.00 | H16: =SUM(活動[[#Totals],[新客戶電話]]-H15) -> -NT$80.00 | I16: =SUM(活動[[#Totals],[客房數]]-I15) -> -NT$400.00 | J16: =SUM(活動[[#Totals],[食物與飲料]]-J15) -> -NT$600.00 | K16: =SUM(活動[[#Totals],[會議室租借]]-K15) -> -NT$300.00 | L16: =SUM(活動[[#Totals],[其他*]]-L15) -> -NT$300.00 | M16: =SUM(C16:L16) -> -NT$2,143.00
B18: *說明
B20: 核准
